bitfinex/quotes_ETHUSD_20250210
["timestamp","ask_amount","ask_price","bid_price","bid_amount"]
[1739151519789,3.82189,2616.5,2616.4,3.06365288]
[1739151519984,3.86966537,2616.5,2616.4,3.06365288]
[1739151520189,3.9571569,2616.5,2616.4,3.06365288]
[1739151520985,7.81571859,2616.5,2616.4,3.06365288]
[1739151521935,3.82233,2616.2,2616.1,3.06365288]
[1739151522529,3.9572191,2616.2,2616.1,3.06365288]
[1739151522883,4.00499968,2616.2,2615.8,3.06365288]
[1739151523116,3.82277,2615.9,2615.8,3.06365288]
[1739151523552,3.9576591,2615.9,2615.8,3.06365288]
[1739151524399,0.1348891,2615.9,2615.8,3.06365288]
[1739151524720,0.13361676,2615.9,2615.8,3.06365288]
[1739151524894,3.82256,2616.1,2615.8,3.06365288]
[1739151525100,0.13361676,2616.0,2615.8,3.06365288]
[1739151525344,3.95625676,2616.0,2615.8,3.06365288]
[1739151525912,0.13361676,2616.0,2615.8,3.06365288]
[1739151526439,3.95626676,2616.0,2615.8,3.06365288]
[1739151527149,0.13361676,2616.0,2615.8,3.06365288]
[1739151527436,8.53500148,2616.5,2615.8,3.06365288]
[1739151527612,0.13361676,2615.9,2615.6,0.8236]
[1739151527931,3.82178,2616.6,2615.5,0.8236]
[1739151527932,0.13361676,2615.8,2615.5,0.8236]
[1739151528137,7.6449,2616.2,2615.7,0.8236]
[1739151528335,7.6449,2616.2,2615.7,1.288272]
[1739151528541,0.13361676,2616.1,2615.9,4.64628]
[1739151528735,0.13361676,2616.1,2615.7,4.287662]
[1739151528736,3.82228,2616.3,2616.0,3.88725288]
[1739151528926,3.82248,2616.1,2616.0,0.8236]
[1739151529315,3.95181961,2616.1,2616.0,0.8236]
[1739151530399,0.12933961,2616.1,2616.0,0.8236]
[1739151530599,3.82228,2616.3,2616.0,3.88725288]
[1739151530833,0.12933961,2616.1,2616.0,3.88725288]
[1739151531030,7.64455,2616.3,2616.0,3.88725288]
[1739151531225,0.12933961,2616.1,2616.0,3.88725288]
[1739151531435,3.82176,2616.6,2616.0,4.41432672]
[1739151531705,3.82145,2616.9,2616.5,3.14903847]
[1739151531905,3.82145,2616.9,2616.8,2.39423847]
[1739151532447,3.95099829,2616.9,2616.8,2.39423847]
[1739151533347,0.12954829,2616.9,2616.8,2.39423847]
[1739151533548,3.82119,2617.0,2616.8,2.85891047]
[1739151533708,0.12978012,2616.9,2616.8,2.39423847]
[1739151534507,0.12978012,2616.9,2616.8,9.36473694]
[1739151534707,7.64076,2617.6,2616.9,3.82118]
[1739151534908,0.12985738,2617.5,2617.3,2.39423847]
[1739151535245,0.12985738,2617.5,2617.4,0.7548]
[1739151535925,3.82009,2617.8,2617.4,0.7548]
[1739151536245,3.82009,2617.8,2617.7,2.39423847]
[1739151537745,3.82009,2617.8,2617.7,3.06262139]
[1739151538150,3.82009,2617.8,2617.4,3.06262139]
[1739151538151,3.82043,2617.5,2617.4,3.06262139]
[1739151539043,3.8203,2617.6,2617.4,3.06262139]
[1739151539751,3.82043,2617.5,2617.4,3.06262139]
[1739151542315,3.81996,2617.9,2617.4,3.36888353]
[1739151542516,3.81996,2617.9,2617.8,3.06262139]
[1739151543920,3.82041,2617.6,2617.5,3.06262139]
[1739151544243,3.82073,2617.3,2617.2,3.06262139]
[1739151544911,4.584862,2617.3,2617.2,3.06262139]
[1739151546077,3.82073,2617.3,2617.2,3.06262139]
[1739151547173,3.82073,2617.3,2616.6,0.7548]
[1739151547174,6.82116,2617.0,2616.9,3.06262139]
[1739151547536,6.95240038,2617.0,2616.9,3.06262139]
[1739151547780,7.0001642,2617.0,2616.6,3.06262139]
[1739151547932,3.8216,2616.7,2616.6,3.06262139]
[1739151548468,3.95259318,2616.7,2616.6,3.06262139]
[1739151549194,6.95259318,2616.7,2616.6,3.06262139]
[1739151549340,3.82204,2616.4,2616.3,3.06262139]
[1739151549542,3.95285546,2616.4,2616.3,3.06262139]
[1739151551188,0.13081546,2616.4,2616.3,3.06262139]
[1739151551539,7.64371,2616.6,2616.3,3.06262139]
[1739151551882,4.46671642,2617.0,2616.3,3.06262139]
[1739151551883,3.82204,2616.4,2616.3,3.06262139]
[1739151552374,0.13067636,2616.4,2616.3,3.06262139]
[1739151552577,3.82167,2616.7,2616.3,3.36888353]
[1739151552789,3.82167,2616.7,2616.6,3.06262139]
[1739151556991,3.0,2616.6,2616.3,3.06262139]
[1739151557186,3.82204,2616.4,2616.0,3.06262139]
[1739151557488,3.82248,2616.1,2616.0,3.06262139]
[1739151557671,3.82248,2616.1,2616.0,2.39580979]
[1739151558200,4.586962,2616.1,2616.0,2.39580979]
[1739151558554,3.82248,2616.1,2616.0,2.39580979]
[1739151560654,3.82221,2616.3,2616.1,0.7533]
[1739151560860,0.81447597,2616.7,2616.0,2.39580979]
[1739151561068,3.82204,2616.4,2616.3,2.39580979]
[1739151561782,3.82204,2616.4,2616.0,2.39580979]
[1739151561783,3.82248,2616.1,2616.0,2.39580979]
[1739151562186,3.95246111,2616.1,2616.0,2.39580979]
[1739151563516,6.95246111,2616.1,2616.0,2.39580979]
[1739151564853,7.00024601,2616.1,2616.0,2.39580979]
[1739151565014,8.15917561,2616.1,2616.0,2.39580979]
[1739151565309,8.11139071,2616.1,2616.0,2.39580979]
[1739151565668,3.82292,2615.8,2615.7,2.39580979]
[1739151566181,3.9523369,2615.8,2615.7,2.39580979]
[1739151566386,3.82336,2615.5,2615.4,2.39580979]
[1739151566886,3.95242125,2615.5,2615.4,2.39580979]
[1739151568506,0.12906125,2615.5,2615.4,2.39580979]
[1739151568711,3.95242125,2615.5,2615.4,2.39580979]
[1739151570731,7.76691625,2615.5,2615.1,2.39580979]
[1739151570901,3.82423,2614.9,2614.8,2.39580979]
[1739151571429,3.95309791,2614.9,2614.8,2.39580979]
[1739151571800,4.0009034,2614.9,2614.8,2.39580979]
[1739151571995,4.86007374,2614.9,2614.8,2.39580979]
[1739151572185,3.82467,2614.6,2614.5,2.39580979]
[1739151572385,3.82461,2614.7,2614.5,2.39580979]
[1739151572699,0.1283341,2614.6,2614.5,2.39580979]
[1739151573026,3.82438,2614.8,2614.5,3.14910979]
[1739151573186,3.8243,2614.9,2614.7,2.39580979]
[1739151574021,3.82438,2614.8,2614.7,2.39580979]
[1739151574426,4.63888564,2614.8,2614.7,2.39580979]
[1739151574627,4.59108,2614.8,2614.7,2.39580979]
[1739151574927,7.59152,2614.5,2614.4,2.39580979]
[1739151575132,7.59152,2614.5,2614.1,2.39580979]
[1739151575133,6.82526,2614.2,2614.1,2.39580979]
[1739151576416,3.82526,2614.2,2614.1,2.39580979]
[1739151577230,3.9535941,2614.2,2614.1,2.39580979]
[1739151577432,0.1283341,2614.2,2614.1,2.39580979]
[1739151577746,3.82512,2614.3,2614.1,3.21400979]
[1739151577940,0.12686432,2614.2,2614.1,3.21400979]
[1739151578108,0.12686432,2614.2,2614.1,0.8182]
[1739151578638,3.82512,2614.3,2614.1,0.8182]
[1739151578950,3.95212432,2614.2,2614.1,0.8182]
[1739151579248,0.12686432,2614.2,2614.1,0.8182]
[1739151579613,3.82512,2614.3,2614.1,0.8182]
[1739151579813,0.12643087,2614.2,2614.1,0.8182]
[1739151580012,3.82512,2614.3,2614.1,0.8182]
[1739151580216,3.8254,2614.1,2614.0,2.39580979]
[1739151581042,3.95183087,2614.1,2614.0,2.39580979]
[1739151583855,3.95183087,2614.1,2614.0,3.21400979]
[1739151584151,0.12643087,2614.1,2614.0,5.11302056]
[1739151584551,7.65017,2614.4,2614.0,5.11302056]
[1739151584851,3.82506,2614.4,2614.3,2.39580979]
[1739151589255,3.82458,2614.7,2614.3,2.39580979]
[1739151589427,3.82458,2614.7,2614.6,2.39580979]
[1739151590170,5.41748295,2614.7,2614.6,2.39580979]
[1739151590569,3.82496,2614.4,2614.3,2.39580979]
[1739151592258,3.95128248,2614.4,2614.3,2.39580979]
[1739151593281,3.82614,2613.6,2613.5,2.39580979]
[1739151593451,7.93918309,2613.6,2613.5,2.39580979]
[1739151593628,3.82657,2613.3,2613.2,2.39580979]
[1739151594267,3.95289248,2613.3,2613.2,2.39580979]
[1739151594474,0.12632248,2613.3,2613.2,2.39580979]
[1739151594776,3.8261,2613.7,2613.2,3.21390979]
[1739151595071,3.8261,2613.7,2613.2,0.8181]
[1739151595368,0.12632248,2613.6,2613.2,0.8181]
[1739151595743,0.7797,2614.9,2613.9,0.8181]
[1739151595975,3.82494,2614.5,2613.9,4.6438]
[1739151596144,3.82494,2614.5,2614.4,2.39580979]
[1739151596537,7.77166096,2614.5,2614.4,2.39580979]
[1739151597886,3.82526,2614.2,2614.1,2.39580979]
[1739151598437,3.94707096,2614.2,2614.1,2.39580979]
[1739151600871,3.99488793,2614.2,2614.1,2.39580979]
[1739151601179,3.8257,2613.9,2613.8,2.39580979]
[1739151601482,3.94739482,2613.9,2613.8,2.39580979]
[1739151601782,7.60584,2613.6,2613.5,2.39580979]
[1739151601937,9.049024,2613.6,2613.5,2.39580979]
[1739151602342,9.17071882,2613.6,2613.5,2.39580979]
[1739151603182,9.17071882,2613.6,2613.2,2.39580979]
[1739151603346,3.82657,2613.3,2613.2,2.39580979]
[1739151603768,3.9960994,2613.3,2613.2,2.39580979]
[1739151605480,0.12169482,2613.3,2613.2,3.21390979]
[1739151605679,7.65245,2613.6,2613.2,3.77488175]
[1739151605859,7.65245,2613.6,2613.5,2.39580979]
[1739151606055,3.8262,2613.6,2613.5,2.39580979]
[1739151606260,7.65188,2613.8,2613.5,2.39580979]
[1739151606461,3.82614,2613.6,2613.5,2.39580979]
[1739151607456,3.9475328,2613.6,2613.5,2.39580979]
[1739151607867,4.77271231,2613.6,2613.5,2.39580979]
[1739151608082,3.82657,2613.3,2613.2,2.39580979]
[1739151608468,3.94799378,2613.3,2613.2,2.39580979]
[1739151610877,4.82462834,2613.3,2613.2,2.39580979]
[1739151611257,4.82462834,2613.3,2612.6,2.39580979]
[1739151611258,3.82672,2613.2,2612.6,2.39580979]
[1739151611460,3.82745,2612.7,2612.6,2.39580979]
[1739151612199,6.99652679,2612.7,2612.3,2.40080979]
[1739151612410,3.82789,2612.4,2612.3,2.40080979]
[1739151612604,3.82789,2612.4,2612.3,0.005]
[1739151612962,3.94912014,2612.4,2612.3,0.005]
[1739151613163,3.99697504,2612.4,2612.3,0.005]
[1739151613390,4.77944754,2612.4,2612.3,0.005]
[1739151614170,3.99697504,2612.4,2612.3,0.005]
[1739151614411,3.94912014,2612.4,2612.3,0.005]
[1739151615808,3.9969745,2612.4,2612.3,0.005]
[1739151616029,3.94912014,2612.4,2612.3,0.005]
[1739151616201,0.12123014,2612.4,2612.3,0.005]
[1739151616520,3.82749,2612.7,2612.3,0.005]
[1739151616675,0.12010693,2612.4,2612.3,0.005]
[1739151616875,3.82761,2612.6,2612.3,0.005]
[1739151617102,0.12010693,2612.4,2612.3,0.005]
[1739151617331,3.82775,2612.5,2612.3,3.08080803]
[1739151617477,3.82775,2612.5,2612.4,3.07580803]
[1739151620923,5.361486,2612.5,2612.4,3.07580803]
[1739151622450,4.71339293,2612.5,2612.4,3.07580803]
[1739151622718,3.94785693,2612.5,2612.4,3.07580803]
[1739151623983,0.12010693,2612.5,2612.4,3.07580803]
[1739151624900,3.94785693,2612.5,2612.4,3.07580803]
[1739151625302,0.12010693,2612.5,2612.4,3.07580803]
[1739151625600,3.94785693,2612.5,2612.4,3.07580803]
[1739151626184,0.12010693,2612.5,2612.4,3.07580803]
[1739151628834,3.94785693,2612.5,2612.4,3.07580803]
[1739151631489,3.82761,2612.6,2612.4,3.07580803]
[1739151631690,3.943025,2612.5,2612.4,3.07580803]
[1739151632301,3.99543743,2612.5,2612.4,3.07580803]
[1739151634037,4.77774217,2612.5,2612.4,3.07580803]
[1739151634240,6.82789,2612.4,2612.3,0.005]
[1739151634619,7.81157945,2612.4,2612.3,0.005]
[1739151634791,7.76372318,2612.4,2612.3,0.005]
[1739151634992,9.38386197,2612.4,2612.3,0.005]
[1739151635243,4.59639,2612.2,2612.1,3e-06]
[1739151635413,4.6442517,2612.2,2612.1,3e-06]
[1739151635593,4.81162131,2612.2,2612.1,3e-06]
[1739151636148,4.76375961,2612.2,2612.1,3e-06]
[1739151636313,9.46774245,2612.2,2612.1,3e-06]
[1739151636515,9.49754245,2612.2,2612.1,3e-06]
[1739151637044,10.14754245,2612.2,2612.1,3e-06]
[1739151637596,7.62736,2611.4,2611.3,2.40359134]
[1739151637802,7.62765,2611.2,2610.7,2.40359134]
[1739151638111,7.79416642,2611.2,2610.7,2.40359134]
[1739151638545,7.79416642,2611.2,2611.0,2.40359134]
[1739151638698,0.798,2610.7,2610.4,2.40359134]
[1739151639041,0.798,2610.7,2609.6,0.1472721]
[1739151639042,6.83185,2609.7,2609.6,2.55086344]
[1739151639647,7.79490826,2609.7,2609.6,2.1e-06]
[1739151639797,8.96235821,2609.7,2609.6,2.1e-06]
[1739151640209,8.96235821,2609.7,2608.8,8.48e-06]
[1739151640210,1.448,2609.5,2608.8,8.48e-06]
[1739151640506,3.2,2609.6,2608.8,8.48e-06]
[1739151640507,3.83303,2608.9,2608.8,8.48e-06]
[1739151640711,0.798,2609.3,2608.8,8.48e-06]
[1739151640933,3.83244,2609.3,2609.2,2.40359134]
[1739151641249,3.83217,2609.5,2609.2,2.40359134]
[1739151641552,0.798,2610.3,2609.2,2.88430961]
[1739151641699,0.798,2610.3,2609.0,3.21219134]
[1739151641700,4.62906,2610.3,2609.1,3.08124104]
[1739151641903,3.83141,2610.0,2609.9,3.08124104]
[1739151642104,6.83141,2610.0,2609.9,3.08124104]
[1739151642613,3.83131,2610.1,2609.9,3.08124104]
[1739151643209,3.83098,2610.3,2609.9,3.08124104]
[1739151643555,3.83048,2610.7,2610.2,3.08124104]
[1739151643751,3.83048,2610.7,2610.5,3.08124104]
[1739151643934,3.83007,2611.0,2610.5,3.88984104]
[1739151644260,3.82941,2611.4,2610.8,3.08124104]
[1739151644405,3.83009,2610.9,2610.8,3.08124104]
[1739151644609,3.83024,2610.8,2610.5,0.8086]
[1739151644947,3.83052,2610.7,2610.4,3.08124104]
[1739151645133,3.83052,2610.7,2610.6,3.08124104]
[1739151645711,4.596596,2610.7,2610.6,3.08124104]
[1739151646633,3.83052,2610.7,2610.6,3.08124104]
[1739151648142,3.83083,2610.4,2610.3,3.08124104]
[1739151648452,3.83131,2610.1,2610.0,3.08124104]
[1739151649780,3.83099,2610.3,2610.0,3.08124104]
[1739151650145,3.83127,2610.1,2610.0,3.08124104]
[1739151651596,3.83099,2610.3,2610.0,3.08124104]
[1739151652097,3.83043,2610.7,2610.0,3.38936514]
[1739151652277,3.83078,2610.5,2610.4,3.08124104]
[1739151652486,3.83043,2610.7,2610.4,3.08124104]
[1739151652798,0.43971475,2611.7,2610.4,3.08124104]
[1739151652799,0.7534,2611.7,2610.4,6.92448208]
[1739151652997,3.83009,2610.9,2610.4,0.762]
[1739151653352,3.83009,2610.9,2610.4,4.59282]
[1739151653552,3.82982,2611.1,2610.5,3.83066]
[1739151653790,3.82956,2611.3,2610.7,3.83037]
[1739151654000,3.82956,2611.3,2610.8,3.83023]
[1739151654159,3.82937,2611.4,2611.2,3.08124104]
[1739151655160,3.82911,2611.6,2611.2,3.84324104]
[1739151655349,3.82911,2611.6,2611.5,3.08124104]
[1739151655789,3.0,2612.1,2611.5,3.08124104]
[1739151655991,3.82848,2612.0,2611.9,3.08124104]
[1739151656192,0.841021,2612.0,2611.9,3.08124104]
[1739151656393,7.65678,2612.1,2611.9,3.08124104]
[1739151656394,3.82833,2612.1,2611.9,3.08124104]
[1739151657097,3.82848,2612.0,2611.9,3.08124104]
[1739151657298,3.82833,2612.1,2611.9,3.08124104]
[1739151657492,7.65679,2612.1,2611.9,3.08124104]
[1739151657809,0.7534,2612.0,2610.6,8.86]
[1739151658095,0.7534,2612.0,2608.3,1.93230637]
[1739151658096,0.1,2608.5,2608.3,1.93230637]
[1739151658297,0.1,2608.5,2608.1,0.762]
[1739151658500,0.04791861,2609.8,2608.1,0.762]
[1739151658501,0.1,2609.1,2608.1,0.762]
[1739151658798,0.2,2608.9,2608.1,2.21518578]
[1739151659015,0.2,2608.9,2608.5,3.08124104]
[1739151659168,0.1630628,2608.8,2608.6,0.3081241]
[1739151659362,3.9962528,2608.8,2608.6,0.3081241]
[1739151659594,3.83152,2610.0,2608.6,0.3081241]
[1739151659595,4.03276,2609.1,2608.6,0.3081241]
[1739151659794,0.15723912,2608.7,2608.6,0.3081241]
[1739151659999,0.1,2609.2,2608.6,0.3081241]
[1739151660201,3.83365,2608.5,2608.1,3.42974317]
[1739151660369,3.83334,2608.7,2608.1,3.42974317]
[1739151660564,0.15681173,2608.4,2608.1,3.42974317]
[1739151660769,0.1,2608.6,2608.1,3.42974317]
[1739151661068,3.83406,2608.3,2607.7,3.42974317]
[1739151661264,3.99001918,2608.2,2607.8,0.34297432]
[1739151661784,3.99001918,2608.2,2607.9,0.762]
[1739151661983,3.99001918,2608.2,2607.9,0.712]
[1739151662189,3.83464,2607.8,2606.6,0.52295927]
[1739151662367,0.1,2605.5,2604.3,3.57701527]
[1739151662573,3.83891,2604.9,2604.3,3.57701527]
[1739151662805,3.83877,2605.0,2604.3,3.57701527]
[1739151663229,0.15446339,2604.9,2604.3,3.57701527]
[1739151663379,0.35446339,2604.9,2604.3,3.57701527]
[1739151663582,3.99337339,2604.9,2604.3,0.1472721]
[1739151663797,0.15446339,2604.9,2604.3,0.1472721]
[1739151664331,0.2,2605.1,2604.3,3.57701527]
[1739151664491,0.14992369,2604.8,2604.4,0.35770153]
[1739151664673,0.2,2605.1,2604.4,0.35770153]
[1739151664875,0.14443382,2605.0,2604.4,0.35770153]
[1739151665189,0.2,2605.1,2604.5,0.762]
[1739151665393,0.14445728,2604.9,2604.5,0.762]
[1739151665591,0.2,2605.1,2604.5,0.762]
[1739151665886,0.13418819,2605.0,2604.9,0.7571]
[1739151666226,0.2,2606.4,2605.6,0.6579]
[1739151666419,0.2,2606.2,2605.9,3.42974317]
[1739151666712,0.1,2606.5,2605.9,3.42974317]
[1739151666713,3.83676,2606.4,2605.9,3.42974317]
[1739151666901,0.12481373,2606.1,2605.6,0.6579]
[1739151667080,4.03676,2606.4,2605.6,0.6579]
[1739151667278,0.12481373,2606.3,2605.7,0.40876432]
[1739151667835,3.96176373,2606.3,2605.7,0.40876432]
[1739151668123,3.96176373,2606.3,2605.9,3.42974317]
[1739151668124,0.12481373,2606.3,2605.9,3.42974317]
[1739151668332,0.2,2606.7,2605.9,3.42974317]
[1739151668537,0.12481373,2606.2,2605.9,3.42974317]
[1739151668835,0.2,2606.4,2606.0,0.34297432]
[1739151669123,0.12481373,2606.3,2606.0,0.34297432]
[1739151669430,0.12481373,2606.3,2605.7,0.40876432]
[1739151670008,0.12481373,2606.3,2606.1,3.42974317]
[1739151670213,4.0367,2606.5,2606.1,3.42974317]
[1739151670427,0.12563812,2606.2,2606.1,3.42974317]
[1739151670588,3.83672,2606.4,2605.7,3.83850749]
[1739151670783,0.12563812,2606.2,2605.8,0.50464075]
[1739151671015,0.2,2606.7,2606.1,3.42974317]
[1739151671413,0.12559888,2606.6,2606.1,3.42974317]
[1739151672598,3.83658,2606.5,2606.1,3.42974317]
[1739151673140,3.96230888,2606.4,2606.1,3.42974317]
[1739151673296,3.96230888,2606.4,2606.2,0.34297432]
[1739151673494,3.83685,2606.3,2606.2,0.34297432]
[1739151673727,3.83685,2606.3,2605.7,3.42974317]
[1739151673892,0.12559888,2606.3,2605.9,3.83744]
[1739151674097,0.3,2606.5,2606.1,3.42974317]
[1739151674337,0.12559888,2606.2,2606.1,3.42974317]
[1739151674502,4.13661,2606.5,2606.1,3.42974317]
[1739151674693,4.13661,2606.5,2606.2,0.34297432]
[1739151675853,3.83685,2606.3,2606.2,0.34297432]
[1739151676150,3.83685,2606.3,2605.7,3.42974317]
[1739151676151,3.8367,2606.4,2605.7,3.42974317]
[1739151676303,3.83697,2606.3,2605.7,3.42974317]
[1739151676736,3.83688,2606.3,2605.7,7.26748317]
[1739151676943,3.83688,2606.3,2605.7,3.42974317]
[1739151677400,3.8367,2606.4,2605.7,3.42974317]
[1739151677595,3.8367,2606.4,2605.8,0.79254932]
[1739151678000,7.67351,2606.4,2605.8,0.79254932]
[1739151678226,3.83701,2606.2,2605.8,0.79254932]
[1739151679137,4.03715,2606.1,2605.8,0.79254932]
[1739151679330,4.03715,2606.1,2605.7,3.42974317]
[1739151680338,3.8373,2606.0,2605.7,3.42974317]
[1739151680526,0.2,2606.1,2605.7,3.42974317]
[1739151681442,0.2,2606.1,2605.7,7.26746317]
[1739151681650,0.2,2606.1,2605.8,1.17631232]
[1739151682467,0.12619567,2606.0,2605.8,1.17631232]
[1739151682677,0.12619567,2606.0,2605.7,3.42974317]
[1739151682864,0.12619567,2606.0,2605.8,0.55]
[1739151683070,4.13587,2607.0,2606.5,3.42974317]
[1739151683853,0.2,2606.8,2606.5,7.26626317]
[1739151684156,0.2,2607.1,2606.6,4.63874632]
[1739151684332,0.2,2607.1,2606.9,3.42974317]
[1739151684531,4.03578,2607.1,2606.9,3.42974317]
[1739151685561,3.83582,2607.0,2606.9,3.42974317]
[1739151686019,3.83582,2607.0,2606.5,3.42974317]
[1739151686216,3.8359,2607.0,2606.5,3.84842749]
[1739151686533,0.2,2606.9,2606.5,7.68495749]
[1739151686745,0.2,2606.9,2606.5,3.84842749]
[1739151686961,4.036,2606.9,2606.5,3.84842749]
[1739151687166,0.3,2606.7,2606.1,3.42974317]
[1739151687347,3.837,2606.3,2606.1,3.42974317]
[1739151687673,3.837,2606.2,2606.1,3.42974317]
[1739151687950,0.2,2606.5,2606.1,3.42974317]
[1739151688153,0.2,2606.2,2606.1,3.42974317]
[1739151688352,0.7926,2606.6,2605.7,3.42974317]
[1739151688353,0.2,2605.9,2605.7,3.42974317]
[1739151688554,4.03755,2605.9,2605.3,7.26806317]
[1739151688764,0.2,2605.9,2605.4,0.72680632]
[1739151689058,4.03716,2606.1,2605.7,3.42974317]
[1739151689231,0.2,2606.1,2605.7,3.42974317]
[1739151690066,0.2,2605.9,2605.7,3.42974317]
[1739151690630,0.11335123,2605.8,2605.7,3.42974317]
[1739151690960,0.2,2605.1,2604.7,3.42974317]
[1739151691134,4.13805,2605.5,2604.8,0.2]
[1739151691454,0.11319393,2605.0,2604.8,0.2]
[1739151691660,0.2,2605.2,2604.8,0.2]
[1739151691973,4.03824,2605.4,2604.8,0.2]
[1739151692146,0.11306807,2605.1,2604.8,4.03901]
[1739151692347,0.2,2605.4,2605.0,3.42974317]
[1739151693954,3.2,2605.4,2605.0,3.42974317]
[1739151694154,0.2,2604.7,2604.2,3.42974317]
[1739151694351,4.13902,2604.9,2604.2,7.26957317]
[1739151694576,4.13902,2604.9,2604.3,1.27295363]
[1739151694792,4.13902,2604.9,2604.3,5.11274363]
[1739151694978,4.13902,2604.9,2604.6,3.42974317]
[1739151696357,0.2,2604.7,2604.6,3.42974317]
[1739151696550,0.2,2604.7,2604.3,1.27295363]
[1739151696856,3.83963,2604.5,2604.3,0.1472721]
[1739151697216,0.1,2603.8,2602.5,0.01163413]
[1739151697352,0.2,2602.9,2602.5,3.4413773]
[1739151697851,0.2,2602.9,2602.5,3.42974317]
[1739151698091,0.2,2602.9,2602.1,3.43474317]
[1739151698092,4.14186,2602.9,2602.1,3.43474317]
[1739151698296,0.4122181,2602.9,2602.1,3.43474317]
[1739151698587,0.2122181,2602.9,2602.5,3.42974317]
[1739151698791,0.4122181,2602.9,2602.5,3.42974317]
[1739151699086,4.2540781,2602.9,2602.5,3.42974317]
[1739151699385,5.0454781,2602.9,2602.8,3.33e-06]
[1739151699604,0.4122181,2602.9,2602.8,3.33e-06]
[1739151700657,0.2,2603.2,2602.8,3.33e-06]
[1739151700959,0.3,2603.4,2603.0,3.84169]
[1739151701165,0.2,2603.4,2603.1,35.384169]
[1739151701792,0.1,2603.6,2603.2,3.84139]
[1739151701992,0.1,2603.6,2603.1,36.191269]
[1739151701993,0.9914,2603.5,2602.3,2.0]
[1739151702196,0.9914,2603.5,2595.1,0.3832]
[1739151702197,0.1,2597.2,2595.1,0.3832]
[1739151702368,0.1,2597.2,2593.8,3.85523]
[1739151702369,4.15133,2596.5,2596.4,6.52541129]
[1739151702702,4.22141719,2596.5,2596.4,6.52541129]
[1739151702992,0.1,2596.4,2596.3,4.29e-06]
[1739151703197,4.86113836,2596.4,2596.3,4.29e-06]
[1739151703493,4.86113836,2596.4,2594.6,7.28386317]
[1739151703494,0.1,2595.0,2594.6,7.28386317]
[1739151703695,0.1,2595.6,2595.0,3.85354]
[1739151703906,0.2,2595.9,2595.1,3.42974317]
[1739151704130,0.04815336,2596.4,2595.6,3.42974317]
[1739151704272,0.04815336,2596.7,2595.7,0.34297432]
[1739151704474,0.04815275,2596.7,2595.7,0.34297432]
[1739151704673,3.85126,2596.6,2595.7,0.29297432]
[1739151704916,3.85126,2596.6,2595.7,0.32843072]
[1739151704917,3.8512,2596.6,2595.7,0.32843072]
[1739151705120,3.85109,2596.7,2595.7,0.32843072]
[1739151705323,3.85196,2596.1,2595.7,0.0354564]
[1739151705612,0.04814822,2596.8,2595.1,5e-06]
[1739151705613,3.8525,2595.8,2595.1,5e-06]
[1739151705910,0.75045152,2596.0,2595.1,5e-06]
[1739151706115,0.79860967,2596.0,2595.1,3.853365]
[1739151706276,3.85157,2596.4,2595.4,3.85291]
[1739151706478,0.25625611,2597.6,2596.3,3.85152]
[1739151706676,0.0481477,2597.3,2596.9,3.85073]
[1739151706876,0.25625611,2597.6,2597.1,3.42974317]
[1739151707180,0.25625611,2597.6,2597.5,38.84985]
[1739151707380,0.24104266,2598.0,2597.5,35.0]
[1739151707618,4.34567877,2598.5,2597.6,3.42974317]
[1739151707775,0.49729877,2598.5,2597.7,0.03848992]
[1739151708010,0.49729877,2598.5,2598.4,38.42974317]
[1739151708250,0.49729877,2598.5,2598.4,42.27826317]
[1739151708551,0.49729877,2598.5,2598.4,38.42974317]
[1739151708851,0.7914,2599.1,2598.4,35.0]
[1739151709183,4.32169055,2598.6,2598.4,35.0]
[1739151709809,4.32169055,2598.6,2597.7,3.84955]
[1739151710010,0.09990096,2598.5,2597.6,4.43214924]
[1739151710209,0.09990096,2598.5,2597.7,35.03848606]
[1739151710446,4.32169055,2598.6,2598.5,3.84837]
[1739151711819,4.32169055,2598.6,2598.3,3.84867]
[1739151712021,4.32169055,2598.6,2598.5,4.39837]
[1739151712442,0.7914,2599.7,2598.5,4.39837]
[1739151712443,0.7914,2599.7,2598.8,3.84778]
[1739151712643,0.03705494,2599.9,2598.8,4.47061919]
[1739151712845,0.09990096,2599.6,2599.1,3.84747]
[1739151713047,0.03705494,2600.1,2599.1,3.84747]
[1739151713246,0.09990096,2599.5,2599.4,3.84704]
[1739151713420,0.7677,2600.3,2599.5,3.84678]
[1739151713858,3.84526,2600.6,2599.3,4.43214924]
[1739151713859,3.84512,2600.7,2599.7,3.84653]
[1739151714022,3.84527,2600.6,2599.7,3.84653]
[1739151714217,3.84527,2600.6,2599.7,3.79653]
[1739151714423,3.84556,2600.4,2599.4,0.55]
[1739151714669,3.88228494,2600.7,2599.4,0.58845763]
[1739151714980,3.84546,2600.5,2599.6,3.84667]
[1739151715128,3.88262494,2600.4,2598.8,4.43214924]
[1739151715323,3.84663,2599.7,2598.8,4.43214924]
[1739151715552,3.84663,2599.7,2598.9,3.84771]
[1739151715758,6.84632,2599.9,2598.9,3.84771]
[1739151715957,3.8466,2599.7,2598.9,3.84771]
[1739151716588,3.84708,2599.4,2598.5,3.84836]
[1739151716762,3.84708,2599.4,2598.6,3.84819]
[1739151716970,0.7621,2599.7,2598.4,3.84851]
[1739151716971,3.84734,2599.2,2598.4,3.84851]
[1739151717790,3.84737,2599.2,2598.5,3.84836]
[1739151717985,3.84705,2599.4,2598.6,3.84822]
[1739151718290,0.03705494,2599.3,2598.3,9.07656924]
[1739151718586,3.88425494,2599.3,2598.5,3.84837]
[1739151718756,0.10158689,2599.2,2598.6,3.84819]
[1739151718956,3.94892689,2599.2,2598.4,3.84848]
[1739151719206,0.10158689,2599.2,2598.5,3.84832]
[1739151719401,0.10158689,2599.2,2598.4,3.84846]
[1739151719707,0.10158689,2599.2,2598.6,3.84821]
[1739151719991,0.7621,2599.7,2598.6,0.03847559]
[1739151720197,3.84617,2600.0,2599.2,3.84733]
[1739151720414,4.60797,2600.2,2599.4,3.84692]
[1739151720559,0.35625611,2601.2,2599.5,3.84681]
[1739151720560,0.7621,2600.8,2599.5,3.84681]
[1739151720903,0.03705494,2600.7,2599.9,3.84627]
[1739151721303,0.03705494,2600.7,2599.6,0.0384624]
[1739151721469,3.84612,2600.1,2599.3,4.43214924]
[1739151721670,3.84616,2600.0,2599.3,8.27932924]